fUST/lending_fUST_20250626
["ID","MTS","AMOUNT","RATE_DAILY","PERIOD"]
[367775576,1750926644210,-460.0,0.00019806,2]
[367775577,1750926644219,-460.0,0.00019806,2]
[367775578,1750926644229,-547.58,0.00019806,2]
[367775579,1750926644238,-1799.96,0.00019806,2]
[367775580,1750926644247,-460.0,0.00019806,2]
[367775581,1750926644257,-743.3,0.00019806,2]
[367775582,1750926644266,-2012.3,0.00019806,2]
[367775583,1750926644278,-2473.19,0.00019806,2]
[367775584,1750926644287,-460.0,0.00019806,2]
[367775586,1750926644297,-1244.07,0.00019806,2]
[367775588,1750926644306,-677.05,0.00019806,2]
[367775590,1750926644316,-468.36,0.00019806,2]
[367775592,1750926644325,-699.03,0.00019806,2]
[367775594,1750926644335,-460.0,0.00019807,2]
[367775596,1750926644344,-460.0,0.00019807,2]
[367775598,1750926644354,-471.6,0.00019807,2]
[367775600,1750926644363,-175.18,0.00019807,2]
[367775602,1750926644372,-661.19,0.00019807,2]
[367775604,1750926644381,-460.0,0.00019807,2]
[367775606,1750926644391,-839.6,0.00019807,2]
[367775608,1750926644399,-460.0,0.00019807,2]
[367775610,1750926644409,-460.0,0.00019807,2]
[367775612,1750926644418,-460.0,0.00019807,2]
[367775614,1750926644427,-460.0,0.00019807,2]
[367775616,1750926644437,-460.0,0.00019807,2]
[367775617,1750926644447,-953.78,0.00019807,2]
[367775618,1750926644456,-460.0,0.00019807,2]
[367775619,1750926644465,-460.0,0.00019807,2]
[367775620,1750926644474,-579.78,0.00019807,2]
[367775621,1750926644484,-2178.28,0.00019807,2]
[367775622,1750926644493,-1253.13,0.00019807,2]
[367775624,1750926644503,-1036.8,0.00019807,2]
[367775626,1750926644512,-600.92,0.00019807,2]
[367775628,1750926644521,-460.0,0.00019807,2]
[367775630,1750926644532,-151.0,0.00019808,2]
[367775632,1750926644542,-260.625959,0.00019808,2]
[367775634,1750926644551,-278.857846,0.00019808,2]
[367775635,1750926644560,-151.0,0.00019808,2]
[367775636,1750926644570,-175.860845,0.00019808,2]
[367775637,1750926644579,-175.860845,0.00019808,2]
[367775638,1750926644588,-739.341683,0.00019808,2]
[367775639,1750926644598,-863.99,0.00019808,2]
[367775640,1750926644607,-476.21,0.00019808,2]
[367775641,1750926644617,-460.0,0.00019808,2]
[367775642,1750926644626,-805.45,0.00019808,2]
[367775643,1750926644636,-330.410676,0.00019808,2]
[367775644,1750926644646,-330.410676,0.00019808,2]
[367775645,1750926644655,-719.56591678,0.00019829,2]
[367775646,1750926644664,-366.50543841,0.00019863,2]
[367775647,1750926644673,-151.0,0.0001988,3]
[367775648,1750926644683,-2161.0,0.00019882,2]
[367775649,1750926644693,-966.0,0.00019882,2]
[367775650,1750926644702,-746.1898557,0.00019884,2]
[367775651,1750926644712,-445.02574838,0.00019899,2]
[367775652,1750926644722,-1778.32289053,0.00019899,2]
[367775653,1750926644732,-181.62627248,0.00019899,2]
[367775654,1750926644741,-364.08453992,0.00019899,2]
[367775655,1750926644751,-200.37843636,0.00019899,2]
[367775656,1750926644760,-341.9284282,0.00019899,2]
[367775657,1750926644770,-151.0,0.00019899,2]
[367775658,1750926644780,-151.0,0.00019899,2]
[367775659,1750926644790,-151.0,0.00019899,2]
[367775660,1750926644800,-151.0,0.00019899,2]
[367775661,1750926644809,-287.995252,0.00019899,2]
[367775662,1750926644819,-181.057405,0.00019899,2]
[367775663,1750926644828,-181.057405,0.00019899,2]
[367775664,1750926644837,-67212.0240621,0.00019899,2]
[367775665,1750926644847,-211316.3037973,0.000199,7]
[367775666,1750926644857,-151.0,0.000199,2]
[367775667,1750926644867,-151.0,0.000199,2]
[367775668,1750926644876,-151.0,0.000199,2]
[367775669,1750926644889,-157.551474,0.000199,2]
[367775670,1750926644899,-151.0,0.000199,2]
[367775671,1750926644909,-151.0,0.000199,2]
[367775672,1750926644919,-175.860845,0.000199,2]
[367775673,1750926644930,-175.860845,0.000199,2]
[367775674,1750926644940,-739.341683,0.000199,2]
[367775675,1750926644949,-151.0,0.000199,2]
[367775676,1750926644960,-198.923357,0.000199,2]
[367775677,1750926644969,-198.923357,0.000199,2]
[367775678,1750926644979,-151.0,0.000199,2]
[367775679,1750926644988,-260.526156,0.000199,2]
[367775680,1750926644997,-213.72380786,0.000199,7]
[367775681,1750926645007,-151.0,0.000199,2]
[367775682,1750926645016,-151.0,0.000199,2]
[367775683,1750926645027,-846.92323443,0.000199,7]
[367775684,1750926645036,-181.057405,0.000199,2]
[367775685,1750926645046,-181.057405,0.000199,2]
[367775686,1750926645056,-151.0,0.000199,2]
[367775687,1750926645065,-151.0,0.000199,2]
[367775688,1750926645074,-330.410676,0.000199,2]
[367775689,1750926645084,-330.410676,0.000199,2]
[367775690,1750926645093,-330.410676,0.000199,2]
[367775691,1750926645103,-330.410676,0.000199,2]
[367775692,1750926645112,-2693.73996589,0.00019934,2]
[367775693,1750926645121,-773.79888036,0.00019939,2]
[367775694,1750926645131,-366.50543841,0.00019945,2]
[367775695,1750926645140,-916.0,0.00019983,2]
[367775696,1750926645150,-5000.0,0.0001999,2]
[367775697,1750926645159,-25000.0,0.0001999,2]
[367775698,1750926645169,-10788.59656484,0.0002,2]
[367775699,1750926645178,-436.37816405,0.0002,11]
[367775700,1750926645188,-151.0,0.0002,4]
[367775701,1750926645197,-4000.0,0.0002,4]
[367775702,1750926645206,-500.0,0.00020037,2]
[367775703,1750926645216,-1503.74977708,0.00020038,2]
[367775704,1750926645225,-2000.0,0.00020039,2]
[367775705,1750926645234,-2000.0,0.00020039,2]
[367775706,1750926645243,-2000.0,0.00020052,2]
[367775707,1750926645252,-366.50543841,0.00020055,2]
[367775708,1750926645262,-460.0,0.00020078,2]
[367775709,1750926645271,-863.1,0.00020078,2]
[367775710,1750926645281,-460.0,0.00020079,2]
[367775711,1750926645290,-1372.71,0.00020079,2]
[367775712,1750926645299,-650.35103611,0.0002008,2]
[367775713,1750926645309,-2000.0,0.0002008,2]
[367775714,1750926645318,-2000.0,0.0002008,2]
[367775715,1750926645327,-460.0,0.0002008,2]
[367775716,1750926645336,-1430.01,0.0002008,2]
[367775717,1750926645346,-460.0,0.0002008,2]
[367775718,1750926645358,-460.0,0.0002008,2]
[367775719,1750926645367,-547.58,0.0002008,2]
[367775720,1750926645376,-1799.96,0.0002008,2]
[367775721,1750926645386,-181.0330671,0.0002008,2]
[367775722,1750926645394,-743.3,0.0002008,2]
[367775723,1750926645404,-2012.3,0.0002008,2]
[367775724,1750926645412,-2473.19,0.0002008,2]
[367775725,1750926645422,-460.0,0.0002008,2]
[367775726,1750926645431,-1244.07,0.0002008,2]
[367775727,1750926645441,-677.05,0.0002008,2]
[367775728,1750926645450,-468.36,0.0002008,2]
[367775729,1750926645459,-699.03,0.0002008,2]
[367775730,1750926645469,-460.0,0.00020081,2]
[367775731,1750926645478,-460.0,0.00020081,2]
[367775732,1750926645487,-471.6,0.00020081,2]
[367775733,1750926645496,-661.19,0.00020081,2]
[367775734,1750926645506,-460.0,0.00020081,2]
[367775735,1750926645516,-839.6,0.00020081,2]
[367775736,1750926645526,-460.0,0.00020081,2]
[367775737,1750926645536,-460.0,0.00020081,2]
[367775738,1750926645545,-460.0,0.00020081,2]
[367775739,1750926645555,-460.0,0.00020081,2]
[367775740,1750926645564,-460.0,0.00020081,2]
[367775741,1750926645669,-953.78,0.00020081,2]
[367775742,1750926645679,-460.0,0.00020081,2]
[367775743,1750926645689,-460.0,0.00020081,2]
[367775744,1750926645698,-579.78,0.00020081,2]
[367775745,1750926645707,-2178.28,0.00020081,2]
[367775746,1750926645717,-1253.13,0.00020081,2]
[367775747,1750926645727,-1036.8,0.00020081,2]
[367775748,1750926645736,-600.92,0.00020081,2]
[367775749,1750926645746,-460.0,0.00020081,2]
[367775750,1750926645756,-151.0,0.00020082,2]
[367775751,1750926645766,-157.551474,0.00020082,2]
[367775752,1750926645775,-151.0,0.00020082,2]
[367775753,1750926645784,-198.923357,0.00020082,2]
[367775754,1750926645794,-198.923357,0.00020082,2]
[367775755,1750926645803,-863.99,0.00020082,2]
[367775756,1750926645813,-476.21,0.00020082,2]
[367775757,1750926645822,-460.0,0.00020082,2]
[367775758,1750926645832,-805.45,0.00020082,2]
[367775759,1750926645842,-1614.77716752,0.000201,2]
[367775760,1750926645851,-366.50543841,0.00020137,2]
[367775761,1750926645861,-2693.73996589,0.00020141,2]
[367775762,1750926645870,-151.0,0.00020145,3]
[367775763,1750926645880,-211.536964,0.00020187,2]
[367775764,1750926645893,-152.611998,0.00020197,2]
[367775765,1750926645903,-151.0,0.00020197,2]
[367775766,1750926645913,-151.0,0.00020197,2]
[367775767,1750926645923,-151.0,0.00020197,2]
[367775768,1750926645934,-151.0,0.00020197,2]
[367775769,1750926645943,-151.0,0.00020197,2]
[367775770,1750926645953,-366.50543841,0.00020247,2]
[367775771,1750926645964,-215.0738,0.00020263,2]
[367775772,1750926645974,-366.50543841,0.00020329,2]
[367775773,1750926645983,-151.0,0.00020344,2]
[367775774,1750926645993,-175.860845,0.00020344,2]
[367775775,1750926646002,-175.860845,0.00020344,2]
[367775776,1750926646011,-2693.73996589,0.00020348,3]
[367775777,1750926646021,-460.0,0.00020352,2]
[367775778,1750926646030,-863.1,0.00020352,2]
[367775779,1750926646040,-460.0,0.00020353,2]
[367775780,1750926646050,-587.0,0.00020353,2]
[367775781,1750926646060,-1372.71,0.00020353,2]
[367775782,1750926646070,-460.0,0.00020354,2]
[367775783,1750926646079,-1430.01,0.00020354,2]
[367775784,1750926646089,-460.0,0.00020354,2]
[367775785,1750926646098,-460.0,0.00020354,2]
[367775786,1750926646107,-547.58,0.00020354,2]
[367775787,1750926646117,-1799.96,0.00020354,2]
[367775788,1750926646126,-743.3,0.00020354,2]
[367775789,1750926646135,-2012.3,0.00020354,2]
[367775790,1750926646145,-151.0,0.00020354,2]
[367775791,1750926646154,-330.410676,0.00020354,2]
[367775792,1750926646163,-2473.19,0.00020354,2]
[367775793,1750926646173,-330.410676,0.00020354,2]
[367775794,1750926646183,-460.0,0.00020354,2]
[367775795,1750926646192,-1244.07,0.00020354,2]
[367775796,1750926646202,-677.05,0.00020354,2]
[367775797,1750926646212,-468.36,0.00020354,2]
[367775798,1750926646221,-699.03,0.00020354,2]
[367775799,1750926646231,-460.0,0.00020355,2]
[367775800,1750926646241,-460.0,0.00020355,2]
[367775801,1750926646251,-471.6,0.00020355,2]
[367775802,1750926646260,-661.19,0.00020355,2]
[367775803,1750926646270,-574.92,0.00020355,2]
[367775804,1750926646281,-151.0,0.00020355,2]
[367775805,1750926646291,-151.0,0.00020355,2]
[367775806,1750926646301,-151.0,0.00020355,2]
[367775807,1750926646311,-181.057405,0.00020355,2]
[367775808,1750926646320,-839.6,0.00020355,2]
[367775809,1750926646330,-460.0,0.00020355,2]
[367775810,1750926646339,-181.057405,0.00020355,2]
[367775811,1750926646349,-460.0,0.00020355,2]
[367775812,1750926646359,-485.9,0.00020355,2]
[367775813,1750926646368,-460.0,0.00020355,2]
[367775814,1750926646378,-460.0,0.00020355,2]
[367775815,1750926646388,-953.78,0.00020355,2]
[367775816,1750926646397,-460.0,0.00020355,2]
[367775817,1750926646406,-460.0,0.00020355,2]
[367775818,1750926646417,-579.78,0.00020355,2]
[367775819,1750926646426,-2178.28,0.00020355,2]
[367775820,1750926646435,-1253.13,0.00020355,2]
[367775821,1750926646445,-1036.8,0.00020355,2]
[367775822,1750926646455,-600.92,0.00020355,2]
[367775823,1750926646464,-460.0,0.00020355,2]
[367775824,1750926646474,-151.0,0.00020356,2]
[367775825,1750926646483,-151.0,0.00020356,2]
[367775826,1750926646493,-739.341683,0.00020356,2]
[367775827,1750926646503,-863.99,0.00020356,2]
[367775828,1750926646513,-476.21,0.00020356,2]
[367775829,1750926646523,-219.63,0.00020356,2]
[367775830,1750926646533,-805.45,0.00020356,2]
[367775831,1750926646543,-200.0,0.0002036,2]
[367775832,1750926646552,-168.0,0.00020373,2]
[367775833,1750926646562,-151.0,0.0002041,4]
[367775834,1750926646572,-366.50543841,0.00020438,2]
[367775835,1750926646581,-71272.54342694,0.000205,2]
[367775839,1750926647423,-460.0,0.00017066,2]
[367775840,1750926647532,-460.0,0.0001734,2]
[367775841,1750926647542,-460.0,0.0001734,2]
[367775842,1750926647553,-460.0,0.00017614,2]
[367775843,1750926647562,-460.0,0.00017888,2]
[367775844,1750926647572,-460.0,0.00018162,2]
[367775845,1750926647581,-500.0,0.0001838,2]
[367775846,1750926647590,-500.0,0.0001838,2]
[367775847,1750926647600,-500.0,0.0001838,2]
[367775848,1750926647609,-500.0,0.0001838,2]
[367775849,1750926647619,-500.0,0.0001838,2]
[367775850,1750926647628,-164.41002326,0.0001838,2]
[367775851,1750926647637,-500.0,0.0001838,2]
[367775852,1750926647646,-222.22008213,0.0001838,2]
[367775853,1750926647655,-500.0,0.0001838,2]
[367775854,1750926647665,-500.0,0.0001838,2]
[367775855,1750926647673,-500.0,0.0001838,2]
[367775856,1750926647683,-500.0,0.0001838,2]
[367775857,1750926647692,-500.0,0.0001838,2]
[367775858,1750926647703,-500.0,0.0001838,2]
[367775859,1750926647713,-500.0,0.0001838,2]
[367775860,1750926647724,-500.0,0.0001838,2]
[367775861,1750926647733,-500.0,0.0001838,2]
[367775862,1750926647742,-500.0,0.0001838,2]
[367775863,1750926647751,-406.59293801,0.0001838,2]
[367775864,1750926647760,-500.0,0.0001838,2]
[367775865,1750926647770,-500.0,0.0001838,2]
[367775866,1750926647781,-500.0,0.0001838,2]
[367775867,1750926647791,-510.18041808,0.0001838,2]
[367775868,1750926647800,-500.0,0.0001838,2]
[367775869,1750926647809,-500.0,0.0001838,2]
[367775870,1750926647819,-500.0,0.0001838,2]
[367775871,1750926647828,-500.0,0.0001838,2]
[367775872,1750926647837,-500.0,0.0001838,2]
[367775873,1750926647846,-500.0,0.0001838,2]
[367775874,1750926647855,-500.0,0.0001838,2]
[367775875,1750926647865,-500.0,0.0001838,2]
[367775876,1750926647874,-400.0,0.0001838,2]
[367775877,1750926647885,-500.0,0.0001838,2]
[367775878,1750926647895,-500.0,0.0001838,2]
[367775879,1750926647904,-500.0,0.0001838,2]
[367775880,1750926647914,-500.0,0.0001838,2]
[367775881,1750926647923,-500.0,0.0001838,2]
[367775882,1750926647936,-500.0,0.0001838,2]
[367775883,1750926647945,-500.0,0.0001838,2]
[367775884,1750926647955,-500.0,0.0001838,2]
[367775885,1750926647965,-239.63075264,0.0001838,2]
[367775886,1750926647975,-460.0,0.00018436,2]
[367775887,1750926647985,-460.0,0.0001871,2]
[367775888,1750926647994,-13850.91500819,0.00018894,2]
[367775889,1750926648003,-460.0,0.00018984,2]
[367775890,1750926648012,-460.0,0.00019258,2]
[367775891,1750926648022,-3140.38,0.00019259,2]
[367775892,1750926648033,-460.0,0.00019532,2]
[367775893,1750926648043,-1313.91283686,0.00019533,2]
[367775894,1750926648328,-500.0,0.0001838,2]
[367775895,1750926648339,-500.0,0.0001838,2]
[367775896,1750926648348,-500.0,0.0001838,2]
[367775897,1750926648358,-500.0,0.0001838,2]
[367775898,1750926648369,-500.0,0.0001838,2]
[367775899,1750926648379,-500.0,0.0001838,2]
[367775900,1750926648389,-500.0,0.0001838,2]
[367775901,1750926648399,-500.0,0.0001838,2]
[367775902,1750926648409,-386.84128555,0.0001838,2]
[367775903,1750926648419,-500.0,0.0001838,2]
[367775904,1750926648429,-500.0,0.0001838,2]
[367775905,1750926648439,-500.0,0.0001838,2]
[367775906,1750926648449,-500.0,0.0001838,2]
[367775907,1750926648459,-500.0,0.0001838,2]
[367775908,1750926648470,-500.0,0.0001838,2]
[367775909,1750926648480,-500.0,0.0001838,2]
[367775910,1750926648490,-500.0,0.0001838,2]
[367775911,1750926648500,-500.0,0.0001838,2]
[367775912,1750926648510,-500.0,0.0001838,2]
[367775913,1750926648520,-500.0,0.0001838,2]
[367775914,1750926648536,-500.0,0.0001838,2]
[367775915,1750926648546,-500.0,0.0001838,2]
[367775916,1750926648556,-500.0,0.0001838,2]
[367775917,1750926648565,-500.0,0.0001838,2]
[367775918,1750926648575,-500.0,0.0001838,2]
[367775919,1750926648585,-500.0,0.0001838,2]
[367775920,1750926648595,-151.0,0.00018382,2]
[367775921,1750926648604,-151.0,0.00018382,2]
[367775922,1750926648614,-151.0,0.00018711,2]
[367775923,1750926648623,-151.0,0.00018711,2]
[367775924,1750926648633,-207.21076669,0.000189,2]
[367775925,1750926648643,-151.0,0.00018984,2]
[367775926,1750926648652,-151.0,0.00019329,2]
[367775927,1750926648662,-207.2107666,0.000194,2]
[367775928,1750926648672,-1826.46716314,0.00019533,2]
[367775929,1750926648682,-500.0,0.00019539,2]
[367775930,1750926648692,-824.17504088,0.00019539,2]
[367775931,1750926648701,-151.0,0.000198,2]
[367775932,1750926648711,-460.0,0.00019806,2]
[367775933,1750926648720,-3140.38,0.00019807,2]
[367775934,1750926648730,-406.0,0.00019882,2]
[367775935,1750926648740,-151.0,0.000199,2]
[367775936,1750926648750,-151.0,0.000199,2]
[367775937,1750926648762,-207.2107666,0.000199,2]
[367775938,1750926648772,-460.0,0.0002008,2]
[367775939,1750926648784,-3140.38,0.00020081,2]
[367775940,1750926648794,-460.0,0.00020354,2]
[367775941,1750926648804,-151.0,0.00020354,2]
[367775942,1750926648813,-3140.38,0.00020355,2]
[367775943,1750926648823,-268553.26518662,0.000205,2]
[367775944,1750926648835,-2500.281,0.000205,2]
[367775945,1750926648973,-500.0,0.0001838,2]
[367775946,1750926648983,-413.15314669,0.0001838,2]
[367775947,1750926648995,-86.84685331,0.0001838,2]
[367775948,1750926649006,-500.0,0.0001838,2]
[367775949,1750926649016,-243.79264669,0.0001838,2]
[367775953,1750927348324,190.383267,0.00013699,2]
[367775957,1750927521423,163.79,0.000161,2]
[367775958,1750927522145,163.79,0.000161,2]
[367775959,1750927522774,163.79,0.000161,2]
[367775963,1750927785640,24900.0,0.00016061,2]
[367775990,1750927831892,-160.0,0.00016948,2]
[367775992,1750927831902,-159.73436256,0.00016962,2]
[367775994,1750927831911,-163.79,0.00017,2]
[367775996,1750927831920,-163.79,0.00017,2]
[367775998,1750927831930,-163.79,0.00017,2]
[367776000,1750927831940,-300.0,0.0001706,2]
[367776002,1750927831949,-300.0,0.0001706,2]
[367776004,1750927831958,-300.0,0.0001706,2]
[367776006,1750927831967,-300.0,0.0001706,2]
[367776008,1750927831977,-1200.0,0.0001706,2]
[367776010,1750927831987,-460.0,0.00017061,2]
[367776012,1750927831996,-460.0,0.00017061,2]
[367776014,1750927832006,-461.98817808,0.00017061,2]
[367776016,1750927832016,-460.0,0.00017061,2]
[367776018,1750927832026,-460.0,0.00017061,2]
[367776020,1750927832035,-460.0,0.00017061,2]
[367776022,1750927832045,-208.13332223,0.00017061,2]
[367776024,1750927832054,-515.82,0.00017061,2]
[367776027,1750927832066,-460.0,0.00017061,2]
[367776029,1750927832076,-460.0,0.00017061,2]
[367776031,1750927832085,-460.0,0.00017061,2]
[367776033,1750927832095,-460.0,0.00017061,2]
[367776035,1750927832104,-460.0,0.00017061,2]
[367776037,1750927832114,-798.09,0.00017061,2]
[367776039,1750927832124,-37848.74953555,0.00017061,2]
[367776041,1750927832134,-463.82084155,0.00017062,2]
[367776043,1750927832143,-460.0,0.00017062,2]
[367776045,1750927832153,-460.0,0.00017062,2]
[367776047,1750927832163,-460.0,0.00017062,2]
[367776049,1750927832172,-460.0,0.00017062,2]
[367776051,1750927832182,-460.0,0.00017062,2]
[367776053,1750927832195,-293.31805144,0.00017062,2]
[367776055,1750927832204,-460.0,0.00017062,2]
[367776057,1750927832214,-460.0,0.00017062,2]
[367776059,1750927832224,-460.0,0.00017062,2]
[367776060,1750927832234,-460.0,0.00017062,2]
[367776062,1750927832243,-460.0,0.00017062,2]
[367776064,1750927832253,-460.0,0.00017062,2]
[367776066,1750927832263,-460.0,0.00017062,2]
[367776067,1750927832272,-460.0,0.00017062,2]
[367776068,1750927832283,-460.0,0.00017062,2]
[367776070,1750927832293,-854.77,0.00017062,2]
[367776071,1750927832303,-460.0,0.00017062,2]
[367776073,1750927832312,-460.0,0.00017062,2]
[367776075,1750927832322,-460.0,0.00017062,2]
[367776076,1750927832332,-460.0,0.00017062,2]
[367776077,1750927832342,-460.0,0.00017062,2]
[367776078,1750927832351,-460.0,0.00017062,2]
[367776079,1750927832361,-460.0,0.00017062,2]
[367776081,1750927832370,-460.0,0.00017062,2]
[367776082,1750927832380,-460.0,0.00017062,2]
[367776084,1750927832389,-465.01927479,0.00017062,2]
[367776086,1750927832399,-460.0,0.00017062,2]
[367776088,1750927832409,-412.6950431,0.00017062,2]
[367776092,1750927832419,-1191.8,0.00017062,2]
[367776093,1750927832623,-122.29995357,0.00017062,2]
[367776094,1750927832637,-337.70004643,0.00017062,2]
[367776095,1750927832647,-460.0,0.00017062,2]
[367776096,1750927832657,-376.23979465,0.00017062,2]
[367776097,1750927832668,-1081.33020535,0.00017062,2]
[367776098,1750927832678,-1084.82,0.00017062,2]
[367776099,1750927832687,-461.73111576,0.00017062,2]
[367776100,1750927832697,-460.0,0.00017062,2]
[367776101,1750927832707,-461.21557875,0.00017062,2]
[367776102,1750927832716,-460.0,0.00017062,2]
[367776103,1750927832728,-460.0,0.00017062,2]
[367776104,1750927832738,-460.0,0.00017062,2]
[367776105,1750927832747,-460.0,0.00017062,2]
[367776106,1750927832757,-733.72,0.00017062,2]
[367776107,1750927832767,-460.0,0.00017062,2]
[367776108,1750927832776,-460.0,0.00017062,2]
[367776109,1750927832786,-460.0,0.00017062,2]
[367776110,1750927832795,-460.0,0.00017062,2]
[367776111,1750927832804,-463.04890327,0.00017062,2]
[367776112,1750927832814,-460.0,0.00017062,2]
[367776113,1750927832823,-460.0,0.00017062,2]
[367776114,1750927832832,-460.0,0.00017062,2]
[367776115,1750927832843,-460.0,0.00017062,2]
[367776116,1750927832852,-432.40886648,0.00017062,2]
[367776117,1750927832862,-460.0,0.00017062,2]
[367776118,1750927832872,-460.0,0.00017062,2]
[367776119,1750927832881,-460.0,0.00017062,2]
[367776120,1750927832891,-460.0,0.00017062,2]
[367776121,1750927832901,-460.0,0.00017062,2]
[367776122,1750927832910,-460.0,0.00017062,2]
[367776123,1750927832920,-460.0,0.00017062,2]
[367776124,1750927832930,-368.344031,0.00017063,2]
[367776125,1750927832939,-460.0,0.00017063,2]
[367776126,1750927832949,-460.0,0.00017063,2]
[367776127,1750927832958,-460.0,0.00017063,2]
[367776128,1750927832968,-460.0,0.00017063,2]
[367776129,1750927832977,-460.0,0.00017063,2]
[367776130,1750927832988,-460.0,0.00017063,2]
[367776131,1750927832998,-436.95386115,0.00017063,2]
[367776132,1750927833008,-460.0,0.00017063,2]
[367776133,1750927833017,-460.0,0.00017063,2]
[367776134,1750927833027,-107.41153838,0.00017063,2]
[367776148,1750927837684,-460.0,0.00017062,2]
[367776149,1750927837694,-352.58846162,0.00017063,2]
[367776150,1750927837703,-460.0,0.00017063,2]
[367776151,1750927837712,-462.98667985,0.00017063,2]
[367776152,1750927837722,-358.05042605,0.00017063,2]
[367776153,1750927837789,-101.94957395,0.00017063,2]
[367776154,1750927837799,-460.0,0.00017063,2]
[367776155,1750927837808,-500.0,0.00017063,2]
[367776156,1750927837817,-500.0,0.00017063,2]
[367776157,1750927837827,-460.0,0.00017063,2]
[367776158,1750927837836,-460.0,0.00017063,2]
[367776159,1750927837844,-460.0,0.00017063,2]
[367776160,1750927837853,-460.0,0.00017063,2]
[367776161,1750927838000,-460.0,0.00017063,2]
[367776162,1750927838011,-460.0,0.00017063,2]
[367776163,1750927838020,-460.0,0.00017063,2]
[367776164,1750927838029,-460.0,0.00017063,2]
[367776165,1750927838038,-460.0,0.00017063,2]
[367776166,1750927838047,-460.0,0.00017063,2]
[367776167,1750927838056,-460.0,0.00017063,2]
[367776168,1750927838065,-460.0,0.00017063,2]
[367776169,1750927838075,-460.0,0.00017063,2]
[367776170,1750927838084,-530.54295751,0.00017063,2]
[367776171,1750927838094,-460.0,0.00017063,2]
[367776172,1750927838104,-460.0,0.00017063,2]
[367776173,1750927838113,-460.0,0.00017063,2]
[367776174,1750927838123,-460.0,0.00017063,2]
[367776175,1750927838132,-460.0,0.00017063,2]
[367776176,1750927838141,-460.0,0.00017063,2]
[367776177,1750927838150,-460.0,0.00017063,2]
[367776178,1750927838159,-460.0,0.00017063,2]
[367776179,1750927838168,-460.0,0.00017063,2]
[367776180,1750927838177,-460.0,0.00017063,2]
[367776181,1750927838187,-460.0,0.00017063,2]
[367776182,1750927838197,-460.0,0.00017063,2]
[367776183,1750927838207,-460.0,0.00017063,2]
[367776184,1750927838217,-1352.49,0.00017063,2]
[367776185,1750927838226,-460.0,0.00017063,2]
[367776186,1750927838235,-460.0,0.00017063,2]
[367776187,1750927838245,-622.82,0.00017063,2]
[367776188,1750927838255,-460.0,0.00017063,2]
[367776189,1750927838264,-460.0,0.00017063,2]
[367776190,1750927838274,-460.0,0.00017063,2]
[367776191,1750927838284,-460.0,0.00017063,2]
[367776192,1750927838293,-460.0,0.00017063,2]
[367776193,1750927838303,-460.0,0.00017063,2]
[367776194,1750927838312,-460.0,0.00017063,2]
[367776195,1750927838322,-460.0,0.00017063,2]
[367776196,1750927838331,-460.0,0.00017064,2]